[Event "*** Titled Tuesday Blitz"]
[Site "Chess.com"]
[Date "2020.12.01"]
[Round "2"]
[White "pavelalexandru07"]
[Black "gochatoria98"]
[Result "1-0"]
[WhiteElo "2345"]
[BlackElo "1918"]
[TimeControl "180+1"]
[EndTime "10:18:32 PST"]
[Termination "pavelalexandru07 won by resignation"]

1. e4 {[%clk 0:02:55]} 1... c5 {[%clk 0:02:59.9]} 2. Nf3 {[%clk 0:02:54.8]} 2...
e6 {[%clk 0:03:00.5]} 3. d4 {[%clk 0:02:54.5]} 3... cxd4 {[%clk 0:03:01.1]} 4.
Nxd4 {[%clk 0:02:54.7]} 4... a6 {[%clk 0:03:01.7]} 5. c4 {[%clk 0:02:54.8]} 5...
Nf6 {[%clk 0:03:01]} 6. Nc3 {[%clk 0:02:54.7]} 6... Bb4 {[%clk 0:03:01.7]} 7. e5
{[%clk 0:02:53.6]} 7... Ne4 {[%clk 0:02:53.1]} 8. Qg4 {[%clk 0:02:52.2]} 8...
Nxc3 {[%clk 0:02:46.6]} 9. Bd2 {[%clk 0:02:50.8]} 9... O-O {[%clk 0:02:36.2]}
10. bxc3 {[%clk 0:02:47.1]} 10... Bc5 {[%clk 0:02:30.6]} 11. Bh6 {[%clk
0:02:38]} 11... g6 {[%clk 0:02:30.7]} 12. Bxf8 {[%clk 0:02:36.9]} 12... Qxf8
{[%clk 0:02:30.7]} 13. Bd3 {[%clk 0:02:37.3]} 13... d6 {[%clk 0:02:20.8]} 14.
O-O {[%clk 0:02:30.2]} 14... dxe5 {[%clk 0:02:19.2]} 15. Nb3 {[%clk 0:02:29.8]}
15... Bd6 {[%clk 0:02:16.3]} 16. c5 {[%clk 0:02:29.4]} 16... Bc7 {[%clk
0:02:16.1]} 17. Bc4 {[%clk 0:02:27.1]} 17... Nc6 {[%clk 0:02:15.8]} 18. Rad1
{[%clk 0:02:26.2]} 18... a5 {[%clk 0:02:09.1]} 19. a4 {[%clk 0:02:24.9]} 19...
Kg7 {[%clk 0:01:53.8]} 20. Qe2 {[%clk 0:02:09.7]} 20... b6 {[%clk 0:01:50.7]}
21. Qe4 {[%clk 0:02:03.7]} 21... Bb7 {[%clk 0:01:24.9]} 22. Rd7 {[%clk 0:02:00]}
22... Rc8 {[%clk 0:01:10.8]} 23. cxb6 {[%clk 0:01:55.5]} 23... Nd8 {[%clk
0:01:06.4]} 24. Qe3 {[%clk 0:01:31]} 24... Bb8 {[%clk 0:01:06.5]} 25. Bxe6
{[%clk 0:01:21.8]} 25... Bc6 {[%clk 0:01:00.1]} 26. b7 {[%clk 0:00:56.9]} 26...
Rc7 {[%clk 0:00:37.3]} 27. Rxc7 {[%clk 0:00:55]} 27... Bxc7 {[%clk 0:00:38.2]}
28. Bc8 {[%clk 0:00:50.4]} 28... Nxb7 {[%clk 0:00:36.2]} 29. Bxb7 {[%clk
0:00:48.5]} 29... Bxb7 {[%clk 0:00:36.5]} 30. Qa7 {[%clk 0:00:47.7]} 30... Qc8
{[%clk 0:00:35.5]} 31. Rd1 {[%clk 0:00:34.9]} 31... Qg4 {[%clk 0:00:35.1]} 32.
f3 {[%clk 0:00:29.7]} 32... Bxf3 {[%clk 0:00:30.6]} 33. Rd2 {[%clk 0:00:29.3]}
33... Bd8 {[%clk 0:00:16]} 34. Qe3 {[%clk 0:00:26.8]} 34... Ba8 {[%clk
0:00:12.6]} 35. h3 {[%clk 0:00:20.6]} 35... Qe6 {[%clk 0:00:10.1]} 36. Nc5
{[%clk 0:00:19.2]} 36... Qb6 {[%clk 0:00:08.7]} 37. Qxe5+ {[%clk 0:00:19.5]}
37... Bf6 {[%clk 0:00:07.9]} 38. Qd6 {[%clk 0:00:19.5]} 38... Qb1+ {[%clk
0:00:07]} 39. Kf2 {[%clk 0:00:19.7]} 39... Qf5+ {[%clk 0:00:05.6]} 40. Kg1
{[%clk 0:00:17.1]} 40... Be5 {[%clk 0:00:06.5]} 41. Qd7 {[%clk 0:00:12.9]} 41...
Qb1+ {[%clk 0:00:06.3]} 42. Kf2 {[%clk 0:00:13]} 42... Qb6 {[%clk 0:00:04.9]}
43. Qb5 {[%clk 0:00:05.3]} 43... Qf6+ {[%clk 0:00:04.9]} 44. Kg1 {[%clk
0:00:05.3]} 44... Bg3 {[%clk 0:00:04.9]} 45. Nd3 {[%clk 0:00:02.7]} 45... Qf4
{[%clk 0:00:05.8]} 46. Nxf4 {[%clk 0:00:01.7]} 46... Bxf4 {[%clk 0:00:06.2]} 47.
Qxa5 {[%clk 0:00:02.3]} 47... Be3+ {[%clk 0:00:06.8]} 48. Kf1 {[%clk 0:00:01.8]}
48... Bxd2 {[%clk 0:00:07.7]} 49. Qe5+ {[%clk 0:00:01.6]} 49... f6 {[%clk
0:00:07]} 50. Qd4 {[%clk 0:00:02.5]} 50... Kh6 {[%clk 0:00:07.8]} 51. Qxd2+
{[%clk 0:00:02.8]} 51... Kg7 {[%clk 0:00:06.7]} 52. a5 {[%clk 0:00:03.7]} 52...
g5 {[%clk 0:00:06.8]} 53. Qd4 {[%clk 0:00:03.9]} 53... Bc6 {[%clk 0:00:07.7]}
54. Kf2 {[%clk 0:00:04.4]} 54... Bb5 {[%clk 0:00:08.6]} 55. Qc5 {[%clk
0:00:04.8]} 55... Ba4 {[%clk 0:00:09.5]} 56. Qb6 {[%clk 0:00:05.3]} 1-0

[Event "*** Titled Tuesday Blitz"]
[Site "Chess.com"]
[Date "2020.12.01"]
[Round "2"]
[White "garfio2017"]
[Black "karinachess1"]
[Result "0-1"]
[WhiteElo "2282"]
[BlackElo "2489"]
[TimeControl "180+1"]
[EndTime "10:18:40 PST"]
[Termination "karinachess1 won on time"]

1. e4 {[%clk 0:02:59.3]} 1... c5 {[%clk 0:02:59.1]} 2. c3 {[%clk 0:02:56.9]}
2... d5 {[%clk 0:02:57.7]} 3. exd5 {[%clk 0:02:56.7]} 3... Qxd5 {[%clk
0:02:58.6]} 4. d4 {[%clk 0:02:56.6]} 4... Nc6 {[%clk 0:02:58.8]} 5. Nf3 {[%clk
0:02:55.8]} 5... Bf5 {[%clk 0:02:59]} 6. Be2 {[%clk 0:02:51.7]} 6... e6 {[%clk
0:02:56.2]} 7. O-O {[%clk 0:02:48.8]} 7... Nf6 {[%clk 0:02:55.8]} 8. Be3 {[%clk
0:02:43.3]} 8... cxd4 {[%clk 0:02:54.6]} 9. Bxd4 {[%clk 0:02:40.8]} 9... Be7
{[%clk 0:02:35.1]} 10. Bxf6 {[%clk 0:02:40.1]} 10... Qxd1 {[%clk 0:02:31.5]} 11.
Rxd1 {[%clk 0:02:39]} 11... Bxf6 {[%clk 0:02:31.6]} 12. Na3 {[%clk 0:02:35.7]}
12... O-O {[%clk 0:02:28.8]} 13. h3 {[%clk 0:02:33.7]} 13... Rfd8 {[%clk
0:02:23]} 14. Nb5 {[%clk 0:02:30.1]} 14... Be7 {[%clk 0:02:17.4]} 15. Nbd4
{[%clk 0:02:26.8]} 15... Be4 {[%clk 0:02:15.8]} 16. Nxc6 {[%clk 0:02:24.3]}
16... Bxc6 {[%clk 0:02:16.7]} 17. Nd4 {[%clk 0:02:24.5]} 17... Ba4 {[%clk
0:02:15.6]} 18. b3 {[%clk 0:02:20.2]} 18... Be8 {[%clk 0:02:13.6]} 19. Bf3
{[%clk 0:02:19.6]} 19... Rab8 {[%clk 0:02:10.3]} 20. Ne2 {[%clk 0:02:13.6]}
20... g6 {[%clk 0:02:03]} 21. Kf1 {[%clk 0:02:12.3]} 21... Kg7 {[%clk
0:01:46.8]} 22. Ke1 {[%clk 0:02:08.4]} 22... f5 {[%clk 0:01:37.5]} 23. Rxd8
{[%clk 0:02:06.9]} 23... Bxd8 {[%clk 0:01:37]} 24. Rd1 {[%clk 0:02:06]} 24...
Be7 {[%clk 0:01:33.1]} 25. Nd4 {[%clk 0:02:00]} 25... Kf6 {[%clk 0:01:22.1]} 26.
Nc2 {[%clk 0:01:39.4]} 26... b6 {[%clk 0:01:08.5]} 27. g3 {[%clk 0:01:29]} 27...
Rc8 {[%clk 0:01:08]} 28. c4 {[%clk 0:01:25.5]} 28... g5 {[%clk 0:00:47.7]} 29.
Be2 {[%clk 0:01:11.6]} 29... h5 {[%clk 0:00:44.3]} 30. f3 {[%clk 0:00:58.1]}
30... Bc5 {[%clk 0:00:38.8]} 31. b4 {[%clk 0:00:48.9]} 31... Be7 {[%clk
0:00:38.7]} 32. a3 {[%clk 0:00:48.1]} 32... Ba4 {[%clk 0:00:37.1]} 33. Rc1
{[%clk 0:00:40.8]} 33... a5 {[%clk 0:00:37.2]} 34. bxa5 {[%clk 0:00:35.8]} 34...
bxa5 {[%clk 0:00:38.1]} 35. Kd2 {[%clk 0:00:31.7]} 35... Bxc2 {[%clk 0:00:37.5]}
36. Rxc2 {[%clk 0:00:30.9]} 36... Bxa3 {[%clk 0:00:38.1]} 37. Kd3 {[%clk
0:00:26.5]} 37... Bb4 {[%clk 0:00:36.6]} 38. Bd1 {[%clk 0:00:19.7]} 38... Rd8+
{[%clk 0:00:36.3]} 39. Ke2 {[%clk 0:00:19.8]} 39... Bd6 {[%clk 0:00:31.5]} 40.
g4 {[%clk 0:00:17.2]} 40... fxg4 {[%clk 0:00:30.3]} 41. fxg4 {[%clk 0:00:16.7]}
41... h4 {[%clk 0:00:30.7]} 42. c5 {[%clk 0:00:15.7]} 42... Bc7 {[%clk 0:00:27]}
43. c6 {[%clk 0:00:15.3]} 43... Rd5 {[%clk 0:00:22.7]} 44. Rc3 {[%clk
0:00:13.6]} 44... Re5+ {[%clk 0:00:20.6]} 45. Kf3 {[%clk 0:00:10.5]} 45... Re1
{[%clk 0:00:20]} 46. Be2 {[%clk 0:00:10.1]} 46... Ra1 {[%clk 0:00:17]} 47. Bc4
{[%clk 0:00:08.2]} 47... a4 {[%clk 0:00:16.1]} 48. Re3 {[%clk 0:00:08.1]} 48...
e5 {[%clk 0:00:16.4]} 49. Rd3 {[%clk 0:00:07]} 49... Rc1 {[%clk 0:00:16.3]} 50.
Ba2 {[%clk 0:00:05.4]} 50... a3 {[%clk 0:00:16.2]} 51. Rd7 {[%clk 0:00:05]}
51... Rxc6 {[%clk 0:00:15.8]} 52. Rh7 {[%clk 0:00:05]} 52... Rc3+ {[%clk
0:00:15.3]} 53. Ke4 {[%clk 0:00:04.8]} 53... Kg6 {[%clk 0:00:15.3]} 54. Rd7
{[%clk 0:00:03.5]} 54... Rc2 {[%clk 0:00:13.3]} 55. Bf7+ {[%clk 0:00:02.5]}
55... Kf6 {[%clk 0:00:13.2]} 56. Bg8 {[%clk 0:00:02.4]} 56... Ba5 {[%clk
0:00:12]} 57. Rd6+ {[%clk 0:00:01.4]} 57... Ke7 {[%clk 0:00:12.1]} 0-1

[Event "*** Titled Tuesday Blitz"]
[Site "Chess.com"]
[Date "2020.12.01"]
[Round "2"]
[White "Man-Chuk"]
[Black "gilbert_gm"]
[Result "1-0"]
[WhiteElo "2863"]
[BlackElo "2543"]
[TimeControl "180+1"]
[EndTime "10:18:41 PST"]
[Termination "Man-Chuk won by resignation"]

1. c4 {[%clk 0:02:54.3]} 1... Nf6 {[%clk 0:02:58.9]} 2. Nc3 {[%clk 0:02:51.8]}
2... g6 {[%clk 0:02:59.2]} 3. e4 {[%clk 0:02:51.5]} 3... e5 {[%clk 0:02:56.8]}
4. Nf3 {[%clk 0:02:51.1]} 4... Nc6 {[%clk 0:02:50.3]} 5. d4 {[%clk 0:02:47.8]}
5... exd4 {[%clk 0:02:49.2]} 6. Nxd4 {[%clk 0:02:48.7]} 6... Bg7 {[%clk
0:02:47.4]} 7. Nxc6 {[%clk 0:02:42.2]} 7... dxc6 {[%clk 0:02:47.1]} 8. Qxd8+
{[%clk 0:02:41]} 8... Kxd8 {[%clk 0:02:48]} 9. f3 {[%clk 0:02:29.8]} 9... Be6
{[%clk 0:02:46.6]} 10. Be2 {[%clk 0:02:26.8]} 10... Nd7 {[%clk 0:02:43.2]} 11.
Bd2 {[%clk 0:02:18]} 11... Kc8 {[%clk 0:02:41.2]} 12. O-O-O {[%clk 0:02:16.8]}
12... b6 {[%clk 0:02:41.7]} 13. h4 {[%clk 0:02:10]} 13... h5 {[%clk 0:02:39.2]}
14. Nd5 {[%clk 0:01:52.5]} 14... Ne5 {[%clk 0:02:06]} 15. Bc3 {[%clk 0:01:36.1]}
15... cxd5 {[%clk 0:01:24.6]} 16. exd5 {[%clk 0:01:35.9]} 16... Bf5 {[%clk
0:01:12.7]} 17. f4 {[%clk 0:01:36.1]} 17... Re8 {[%clk 0:01:12.1]} 18. fxe5
{[%clk 0:01:30.6]} 18... Bxe5 {[%clk 0:01:13]} 19. Bxe5 {[%clk 0:01:27.7]} 19...
Rxe5 {[%clk 0:01:13.8]} 20. Bf3 {[%clk 0:01:25.3]} 20... Kd7 {[%clk 0:01:07.5]}
21. Rhe1 {[%clk 0:01:12.8]} 21... Rae8 {[%clk 0:01:05.4]} 22. Rxe5 {[%clk
0:01:13.3]} 22... Rxe5 {[%clk 0:01:06.3]} 23. Kd2 {[%clk 0:01:14.2]} 23... a5
{[%clk 0:01:00.3]} 24. Rf1 {[%clk 0:01:09.5]} 24... Kd6 {[%clk 0:00:58.8]} 25.
b3 {[%clk 0:01:06.5]} 25... Kc5 {[%clk 0:00:57.8]} 26. g3 {[%clk 0:00:53.4]}
26... Kb4 {[%clk 0:00:53.4]} 27. Rf2 {[%clk 0:00:25.6]} 27... Ka3 {[%clk
0:00:42.5]} 28. Kc3 {[%clk 0:00:25.9]} 28... Re3+ {[%clk 0:00:42.5]} 29. Kd4
{[%clk 0:00:26.4]} 29... Re1 {[%clk 0:00:20.3]} 30. c5 {[%clk 0:00:26.2]} 30...
bxc5+ {[%clk 0:00:18.5]} 31. Kxc5 {[%clk 0:00:27.1]} 31... Rc1+ {[%clk
0:00:18.6]} 32. Kb5 {[%clk 0:00:27.5]} 32... Bd7+ {[%clk 0:00:10.1]} 33. Kxa5
{[%clk 0:00:27.5]} 33... Rc5+ {[%clk 0:00:10.1]} 34. Ka6 {[%clk 0:00:28]} 34...
Kb4 {[%clk 0:00:09.9]} 35. Kb7 {[%clk 0:00:22.5]} 35... Rc3 {[%clk 0:00:06]} 36.
Be2 {[%clk 0:00:18.8]} 36... Bf5 {[%clk 0:00:05.5]} 37. Bc4 {[%clk 0:00:16.1]}
37... Rxg3 {[%clk 0:00:03.9]} 38. Kxc7 {[%clk 0:00:16.1]} 38... Rg4 {[%clk
0:00:04]} 39. d6 {[%clk 0:00:15.6]} 39... Rxh4 {[%clk 0:00:04.1]} 40. Rxf5
{[%clk 0:00:10.5]} 40... gxf5 {[%clk 0:00:05]} 41. d7 {[%clk 0:00:10.8]} 41...
Rd4 {[%clk 0:00:05.7]} 42. d8=Q {[%clk 0:00:10.5]} 42... Rxd8 {[%clk 0:00:05.6]}
43. Kxd8 {[%clk 0:00:11.4]} 43... Kc5 {[%clk 0:00:03.7]} 44. Be2 {[%clk
0:00:09.2]} 44... h4 {[%clk 0:00:03.8]} 45. Ke7 {[%clk 0:00:09.7]} 45... Kd4
{[%clk 0:00:02.5]} 46. Kf6 {[%clk 0:00:07.8]} 46... Ke3 {[%clk 0:00:03.4]} 47.
Bf1 {[%clk 0:00:03.1]} 47... f4 {[%clk 0:00:03.5]} 48. Kg5 {[%clk 0:00:03.6]}
48... Kf2 {[%clk 0:00:04]} 49. Kxf4 {[%clk 0:00:02.5]} 49... Kxf1 {[%clk
0:00:03.8]} 50. Kg4 {[%clk 0:00:02]} 50... Ke2 {[%clk 0:00:03.2]} 51. Kxh4
{[%clk 0:00:02.3]} 51... Ke3 {[%clk 0:00:03.8]} 52. Kg5 {[%clk 0:00:02.8]} 52...
Ke4 {[%clk 0:00:02.9]} 53. Kf6 {[%clk 0:00:03.4]} 1-0

[Event "*** Titled Tuesday Blitz"]
[Site "Chess.com"]
[Date "2020.12.01"]
[Round "2"]
[White "tvjosue"]
[Black "DrMamaliga"]
[Result "1/2-1/2"]
[WhiteElo "2577"]
[BlackElo "2349"]
[TimeControl "180+1"]
[EndTime "10:18:47 PST"]
[Termination "Game drawn by repetition"]

1. b3 {[%clk 0:03:00.9]} 1... Nf6 {[%clk 0:02:58.9]} 2. Bb2 {[%clk 0:03:00.7]}
2... g6 {[%clk 0:02:59.8]} 3. Bxf6 {[%clk 0:02:55.6]} 3... exf6 {[%clk
0:03:00.7]} 4. c4 {[%clk 0:02:55.9]} 4... Bg7 {[%clk 0:03:01.6]} 5. Nc3 {[%clk
0:02:56.3]} 5... O-O {[%clk 0:03:02.4]} 6. Rc1 {[%clk 0:02:57.1]} 6... f5 {[%clk
0:03:03.3]} 7. g3 {[%clk 0:02:57.3]} 7... c6 {[%clk 0:03:04.2]} 8. Bg2 {[%clk
0:02:57.6]} 8... d6 {[%clk 0:03:04.7]} 9. e3 {[%clk 0:02:58.1]} 9... Nd7 {[%clk
0:02:43.3]} 10. Nge2 {[%clk 0:02:55]} 10... Ne5 {[%clk 0:02:40.4]} 11. d4 {[%clk
0:02:51.6]} 11... Nd7 {[%clk 0:02:31.7]} 12. O-O {[%clk 0:02:48.9]} 12... Qc7
{[%clk 0:02:17.4]} 13. b4 {[%clk 0:02:44.8]} 13... a6 {[%clk 0:02:15.4]} 14. a4
{[%clk 0:02:42.8]} 14... Rb8 {[%clk 0:02:14.1]} 15. b5 {[%clk 0:02:42.7]} 15...
axb5 {[%clk 0:02:08.7]} 16. axb5 {[%clk 0:02:40.8]} 16... Nb6 {[%clk 0:02:05.1]}
17. Na4 {[%clk 0:02:23.3]} 17... Nxa4 {[%clk 0:02:03.4]} 18. Qxa4 {[%clk
0:02:24.2]} 18... Bd7 {[%clk 0:02:00.4]} 19. bxc6 {[%clk 0:02:19.8]} 19... Bxc6
{[%clk 0:01:58.9]} 20. Qb3 {[%clk 0:02:13.8]} 20... Rfc8 {[%clk 0:01:51.8]} 21.
Nf4 {[%clk 0:02:12.8]} 21... Qd7 {[%clk 0:01:37.2]} 22. Qb6 {[%clk 0:02:07.9]}
22... Bxg2 {[%clk 0:01:34.4]} 23. Kxg2 {[%clk 0:02:07.8]} 23... Qc6+ {[%clk
0:01:35.3]} 24. Qxc6 {[%clk 0:02:05.6]} 24... bxc6 {[%clk 0:01:36.2]} 25. Rb1
{[%clk 0:02:03.6]} 25... Kf8 {[%clk 0:01:33.8]} 26. Rxb8 {[%clk 0:01:58.4]}
26... Rxb8 {[%clk 0:01:34.7]} 27. Ra1 {[%clk 0:01:58.3]} 27... Bf6 {[%clk
0:01:28.5]} 28. Ra6 {[%clk 0:01:57.3]} 28... Rc8 {[%clk 0:01:28.1]} 29. h4
{[%clk 0:01:56]} 29... h5 {[%clk 0:01:23.1]} 30. Ra7 {[%clk 0:01:54.9]} 30...
Bg7 {[%clk 0:01:13.6]} 31. Rb7 {[%clk 0:01:53.5]} 31... Bh6 {[%clk 0:01:10.9]}
32. Ne2 {[%clk 0:01:53.4]} 32... Bg7 {[%clk 0:01:04.6]} 33. Nc1 {[%clk
0:01:51.7]} 33... c5 {[%clk 0:01:01]} 34. dxc5 {[%clk 0:01:10.9]} 34... Rxc5
{[%clk 0:00:51.9]} 35. Rb8+ {[%clk 0:01:08.2]} 35... Ke7 {[%clk 0:00:48.2]} 36.
Rb7+ {[%clk 0:01:08.2]} 36... Kf8 {[%clk 0:00:48.3]} 37. Nd3 {[%clk 0:01:04.7]}
37... Rxc4 {[%clk 0:00:44]} 38. Nf4 {[%clk 0:01:04.2]} 38... Be5 {[%clk
0:00:42.8]} 39. Nd5 {[%clk 0:00:59.4]} 39... Rc5 {[%clk 0:00:39.9]} 40. Nb6
{[%clk 0:00:58]} 40... Kg7 {[%clk 0:00:36.3]} 41. Rd7 {[%clk 0:00:45]} 41... Rb5
{[%clk 0:00:35]} 42. Nc8 {[%clk 0:00:43.7]} 42... Rb8 {[%clk 0:00:32]} 43. Nxd6
{[%clk 0:00:40.9]} 43... Bxd6 {[%clk 0:00:30.8]} 44. Rxd6 {[%clk 0:00:41.4]}
44... Re8 {[%clk 0:00:31.5]} 45. Rd7 {[%clk 0:00:40.7]} 45... Kf6 {[%clk
0:00:30.9]} 46. Kf3 {[%clk 0:00:38.6]} 46... Re7 {[%clk 0:00:30.2]} 47. Rd4
{[%clk 0:00:31.1]} 47... Re6 {[%clk 0:00:27.8]} 48. Ke2 {[%clk 0:00:30.5]} 48...
Re4 {[%clk 0:00:26]} 49. Rd8 {[%clk 0:00:28.2]} 49... Ke7 {[%clk 0:00:24.6]} 50.
Ra8 {[%clk 0:00:27.9]} 50... Kf6 {[%clk 0:00:25]} 51. Ra7 {[%clk 0:00:25.9]}
51... Re7 {[%clk 0:00:25.1]} 52. Rxe7 {[%clk 0:00:25.4]} 52... Kxe7 {[%clk
0:00:26]} 53. Kd3 {[%clk 0:00:25.4]} 53... Kd6 {[%clk 0:00:26.2]} 54. Kd4 {[%clk
0:00:24.5]} 54... f6 {[%clk 0:00:25.7]} 55. f3 {[%clk 0:00:19.2]} 55... g5
{[%clk 0:00:23.5]} 56. f4 {[%clk 0:00:13.7]} 56... g4 {[%clk 0:00:06.2]} 57. Kc4
{[%clk 0:00:12.3]} 57... Kc6 {[%clk 0:00:05.6]} 58. Kd4 {[%clk 0:00:11.6]} 58...
Kd6 {[%clk 0:00:06.2]} 59. e4 {[%clk 0:00:11.5]} 59... fxe4 {[%clk 0:00:06.4]}
60. Kxe4 {[%clk 0:00:12.4]} 60... Ke6 {[%clk 0:00:05.8]} 61. f5+ {[%clk
0:00:11.7]} 61... Kd6 {[%clk 0:00:06.1]} 62. Kd4 {[%clk 0:00:11.5]} 62... Kc6
{[%clk 0:00:06.5]} 63. Kc4 {[%clk 0:00:08.3]} 63... Kd6 {[%clk 0:00:05.6]} 64.
Kd4 {[%clk 0:00:08.3]} 64... Kc6 {[%clk 0:00:06.2]} 65. Kc4 {[%clk 0:00:07.2]}
65... Kd6 {[%clk 0:00:06.7]} 66. Kd4 {[%clk 0:00:07.1]} 1/2-1/2

[Event "*** Titled Tuesday Blitz"]
[Site "Chess.com"]
[Date "2020.12.01"]
[Round "2"]
[White "nubair1198"]
[Black "Zorbos"]
[Result "0-1"]
[WhiteElo "2807"]
[BlackElo "2534"]
[TimeControl "180+1"]
[EndTime "10:18:52 PST"]
[Termination "Zorbos won on time"]

1. c4 {[%clk 0:03:00.1]} 1... e6 {[%clk 0:02:56.7]} 2. Nf3 {[%clk 0:02:57.8]}
2... d5 {[%clk 0:02:56.2]} 3. e3 {[%clk 0:02:58.4]} 3... Nf6 {[%clk 0:02:54.2]}
4. b3 {[%clk 0:02:58.8]} 4... Be7 {[%clk 0:02:54.5]} 5. Bb2 {[%clk 0:02:59.3]}
5... c5 {[%clk 0:02:55.1]} 6. cxd5 {[%clk 0:02:58.9]} 6... exd5 {[%clk
0:02:55.3]} 7. Be2 {[%clk 0:02:58.7]} 7... Nc6 {[%clk 0:02:55.8]} 8. d4 {[%clk
0:02:58.6]} 8... cxd4 {[%clk 0:02:55.3]} 9. Nxd4 {[%clk 0:02:59.5]} 9... Bb4+
{[%clk 0:02:55.7]} 10. Bc3 {[%clk 0:02:56.1]} 10... Qa5 {[%clk 0:02:52.3]} 11.
Bxb4 {[%clk 0:02:55.5]} 11... Qxb4+ {[%clk 0:02:52.9]} 12. Qd2 {[%clk
0:02:55.5]} 12... Qxd2+ {[%clk 0:02:52.7]} 13. Nxd2 {[%clk 0:02:56.4]} 13...
Nxd4 {[%clk 0:02:52.3]} 14. exd4 {[%clk 0:02:57.3]} 14... O-O {[%clk 0:02:51.1]}
15. O-O {[%clk 0:02:56.2]} 15... Re8 {[%clk 0:02:50.2]} 16. Bb5 {[%clk
0:02:54.6]} 16... Bd7 {[%clk 0:02:48.8]} 17. Bxd7 {[%clk 0:02:52.5]} 17... Nxd7
{[%clk 0:02:49.7]} 18. Rfe1 {[%clk 0:02:52.6]} 18... Rac8 {[%clk 0:02:49.9]} 19.
Rxe8+ {[%clk 0:01:50.3]} 19... Rxe8 {[%clk 0:02:49.5]} 20. Rc1 {[%clk
0:01:51.2]} 20... Nf8 {[%clk 0:02:32.5]} 21. Kf1 {[%clk 0:01:42.7]} 21... Ne6
{[%clk 0:02:32.8]} 22. Nf3 {[%clk 0:01:32.9]} 22... f6 {[%clk 0:02:33.2]} 23. h4
{[%clk 0:01:24]} 23... Kf7 {[%clk 0:02:33.3]} 24. b4 {[%clk 0:01:20.5]} 24...
Re7 {[%clk 0:02:32.4]} 25. Rc3 {[%clk 0:01:09.4]} 25... h5 {[%clk 0:02:31.2]}
26. a4 {[%clk 0:01:06.4]} 26... Kg6 {[%clk 0:02:25.8]} 27. Re3 {[%clk
0:01:03.3]} 27... Kf5 {[%clk 0:02:17.3]} 28. g3 {[%clk 0:01:02.7]} 28... Rc7
{[%clk 0:02:15.6]} 29. a5 {[%clk 0:00:49.3]} 29... Rc4 {[%clk 0:02:12.9]} 30. b5
{[%clk 0:00:43]} 30... Rb4 {[%clk 0:02:05.8]} 31. a6 {[%clk 0:00:27]} 31... b6
{[%clk 0:02:06]} 32. Ng1 {[%clk 0:00:21.7]} 32... Rxb5 {[%clk 0:02:02.2]} 33.
Ne2 {[%clk 0:00:19.5]} 33... Ra5 {[%clk 0:02:02.8]} 34. g4+ {[%clk 0:00:18.7]}
34... hxg4 {[%clk 0:02:02.8]} 35. Ng3+ {[%clk 0:00:18.7]} 35... Kf4 {[%clk
0:02:01.3]} 36. Rxe6 {[%clk 0:00:19.6]} 36... Rxa6 {[%clk 0:02:01.9]} 37. Re7
{[%clk 0:00:19.4]} 37... g6 {[%clk 0:02:02.5]} 38. Kg2 {[%clk 0:00:18.2]} 38...
Ra4 {[%clk 0:01:50]} 39. h5 {[%clk 0:00:18]} 39... gxh5 {[%clk 0:01:47.1]} 40.
Rh7 {[%clk 0:00:17.3]} 40... h4 {[%clk 0:01:06.5]} 41. Rxh4 {[%clk 0:00:16.3]}
41... Kg5 {[%clk 0:01:06.7]} 42. Rh5+ {[%clk 0:00:16.6]} 42... Kg6 {[%clk
0:01:07.6]} 43. Rxd5 {[%clk 0:00:17.5]} 43... a5 {[%clk 0:01:08.4]} 44. Ne4
{[%clk 0:00:16.6]} 44... f5 {[%clk 0:01:02.9]} 45. Rd6+ {[%clk 0:00:16.6]} 45...
Kf7 {[%clk 0:01:03.6]} 46. Nc3 {[%clk 0:00:17.1]} 46... Rc4 {[%clk 0:01:00.2]}
47. Nb5 {[%clk 0:00:16.5]} 47... a4 {[%clk 0:00:56.3]} 48. d5 {[%clk 0:00:11.6]}
48... Rc5 {[%clk 0:00:48.5]} 49. Na3 {[%clk 0:00:07.8]} 49... b5 {[%clk
0:00:48.4]} 50. Rd7+ {[%clk 0:00:06.6]} 50... Kf6 {[%clk 0:00:46.9]} 51. Rb7
{[%clk 0:00:07.5]} 51... Rxd5 {[%clk 0:00:46.7]} 52. Nxb5 {[%clk 0:00:08]} 52...
f4 {[%clk 0:00:44.7]} 53. Nc3 {[%clk 0:00:08]} 53... Rd4 {[%clk 0:00:41.9]} 54.
Rb6+ {[%clk 0:00:07.4]} 54... Ke5 {[%clk 0:00:40.8]} 55. Rb5+ {[%clk 0:00:07.6]}
55... Kf6 {[%clk 0:00:38.6]} 56. Ra5 {[%clk 0:00:08.5]} 56... g3 {[%clk
0:00:30]} 57. f3 {[%clk 0:00:08.6]} 57... Rd2+ {[%clk 0:00:28.3]} 58. Kh3 {[%clk
0:00:08.6]} 58... Rh2+ {[%clk 0:00:28.5]} 59. Kg4 {[%clk 0:00:07.6]} 59... g2
{[%clk 0:00:29.4]} 60. Ne2 {[%clk 0:00:07.3]} 60... Rh1 {[%clk 0:00:16.5]} 61.
Kxf4 {[%clk 0:00:07.8]} 61... Re1 {[%clk 0:00:17]} 62. Rf5+ {[%clk 0:00:06.7]}
62... Ke7 {[%clk 0:00:14.5]} 63. Rg5 {[%clk 0:00:02.4]} 63... Rxe2 {[%clk
0:00:14.9]} 64. Rg7+ {[%clk 0:00:01.7]} 64... Kf6 {[%clk 0:00:15]} 65. Rg8
{[%clk 0:00:02.3]} 65... a3 {[%clk 0:00:15.1]} 0-1